bitfinex/quotes_BTCUSD_20260126
["timestamp","ask_amount","ask_price","bid_price","bid_amount"]
[1769401717614,0.02237319,87865.0,87851.0,0.13802365]
[1769401717751,0.03904506,87869.0,87851.0,0.13802365]
[1769401717956,0.02237319,87868.0,87851.0,0.13802365]
[1769401718158,0.03904506,87868.0,87851.0,0.13802365]
[1769401718488,0.02237319,87867.0,87851.0,0.13802365]
[1769401718904,0.02237319,87867.0,87851.0,0.14940655]
[1769401719222,0.02237319,87867.0,87851.0,0.13802365]
[1769401719379,0.02237319,87867.0,87851.0,0.14940655]
[1769401719576,0.02237319,87867.0,87851.0,0.13802365]
[1769401720279,0.02237319,87867.0,87852.0,0.13802365]
[1769401720426,0.02237319,87867.0,87852.0,0.14940643]
[1769401721019,0.02237319,87867.0,87852.0,0.13802365]
[1769401721421,0.04556,87880.0,87852.0,0.13802365]
[1769401721656,0.00142901,87877.0,87852.0,0.14940643]
[1769401721865,0.00020443,87875.0,87852.0,0.13802365]
[1769401722043,0.11366042,87874.0,87852.0,0.13802365]
[1769401722237,0.00470131,87874.0,87852.0,0.13802365]
[1769401722857,0.06827368,87882.0,87850.0,1.01635899]
[1769401722858,0.00841857,87884.0,87857.0,1.01635809]
[1769401723054,0.00841857,87882.0,87859.0,0.14147524]
[1769401723399,0.11366135,87881.0,87859.0,0.14147524]
[1769401723533,0.00841857,87879.0,87854.0,0.14147524]
[1769401723713,0.00720155,87877.0,87853.0,0.01138265]
[1769401723917,0.11366135,87876.0,87854.0,0.14147524]
[1769401724164,0.00720155,87877.0,87854.0,0.14147524]
[1769401724376,0.12535682,87876.0,87854.0,0.14147524]
[1769401724529,0.01169846,87876.0,87854.0,0.15285776]
[1769401724733,0.01169846,87876.0,87854.0,0.14147524]
[1769401725337,0.01169846,87876.0,87854.0,0.15285776]
[1769401725536,0.01169846,87876.0,87855.0,0.01138239]
[1769401725841,0.01169846,87876.0,87855.0,0.13922678]
[1769401727081,0.0130405,87874.0,87850.0,0.13802365]
[1769401728056,0.01374752,87871.0,87850.0,0.13802365]
[1769401729414,0.01374752,87871.0,87851.0,0.0113829]
[1769401729589,0.01374752,87871.0,87850.0,0.13802365]
[1769401729929,0.00039045,87870.0,87850.0,0.13802365]
[1769401730075,0.00039045,87870.0,87850.0,0.14940668]
[1769401730285,0.00039045,87870.0,87854.0,0.012]
[1769401730476,0.00039045,87870.0,87854.0,0.15002365]
[1769401733510,0.01137889,87882.0,87854.0,0.15002365]
[1769401733738,0.01374752,87873.0,87856.0,1.00497596]
[1769401733948,0.11375012,87872.0,87857.0,0.13802365]
[1769401734162,0.11375012,87871.0,87857.0,0.13802365]
[1769401734380,0.11375012,87870.0,87857.0,0.13802365]
[1769401734589,0.04318898,87873.0,87857.0,0.13802365]
[1769401734809,0.11376645,87872.0,87857.0,0.13802365]
[1769401734992,0.04318898,87873.0,87857.0,0.13802365]
[1769401734993,0.11376645,87871.0,87857.0,0.13802365]
[1769401735178,0.11376645,87870.0,87857.0,0.13802365]
[1769401735446,0.11376645,87869.0,87857.0,0.13802365]
[1769401735681,0.02944146,87872.0,87857.0,0.13802365]
[1769401735840,0.1137821,87871.0,87857.0,0.13802365]
[1769401736016,0.1137821,87870.0,87857.0,0.13802365]
[1769401736231,0.02944146,87868.0,87857.0,0.13802365]
[1769401737960,0.02944146,87868.0,87854.0,0.012]
[1769401738368,0.11385692,87867.0,87854.0,0.012]
[1769401738569,0.02944146,87868.0,87854.0,0.012]
[1769401738711,0.11385692,87867.0,87854.0,0.012]
[1769401738917,0.02944146,87868.0,87854.0,0.012]
[1769401739229,0.11385692,87867.0,87854.0,0.012]
[1769401739435,0.11385692,87866.0,87854.0,0.012]
[1769401739652,0.02944146,87868.0,87854.0,0.012]
[1769401739986,0.11390515,87867.0,87854.0,0.012]
[1769401740193,0.11390515,87866.0,87854.0,0.012]
[1769401740408,0.1139252,87865.0,87854.0,0.012]
[1769401740613,0.02944146,87868.0,87854.0,0.012]
[1769401740817,0.1139252,87867.0,87854.0,0.012]
[1769401741130,0.02944146,87868.0,87854.0,0.012]
[1769401741131,0.1139252,87866.0,87854.0,0.012]
[1769401741362,0.96516938,87865.0,87854.0,0.012]
[1769401741536,0.1139252,87864.0,87854.0,0.012]
[1769401742802,0.02944146,87865.0,87854.0,0.012]
[1769401743002,0.11393013,87864.0,87854.0,0.012]
[1769401743347,0.02944146,87865.0,87854.0,0.012]
[1769401743487,0.11393319,87864.0,87854.0,0.012]
[1769401743832,0.02944146,87865.0,87854.0,0.012]
[1769401744000,0.11393319,87864.0,87854.0,0.012]
[1769401744208,0.02944146,87865.0,87854.0,0.012]
[1769401744402,0.11393555,87864.0,87854.0,0.012]
[1769401744610,0.11393555,87863.0,87854.0,0.012]
[1769401744811,0.000284,87871.0,87854.0,0.012]
[1769401744812,0.02944146,87868.0,87854.0,0.012]
[1769401744997,0.03601321,87865.0,87844.0,0.17492]
[1769401745188,0.01756146,87862.0,87844.0,0.17492]
[1769401745493,0.01756146,87862.0,87844.0,0.2995668]
[1769401745712,0.01756146,87862.0,87845.0,0.1246468]
[1769401746077,0.01138096,87866.0,87845.0,0.1246468]
[1769401746278,0.03564492,87862.0,87845.0,0.1246468]
[1769401746484,0.11393389,87861.0,87845.0,0.1246468]
[1769401746684,0.01756146,87861.0,87845.0,0.1246468]
[1769401749348,0.01756146,87855.0,87842.0,0.00014042]
[1769401749537,0.01756146,87853.0,87842.0,0.00014042]
[1769401750947,0.12879455,87854.0,87842.0,0.00014042]
[1769401751589,0.01756146,87857.0,87842.0,0.00014042]
[1769401751800,0.04556,87864.0,87849.0,0.1246468]
[1769401752014,0.1138545,87863.0,87857.0,0.01]
[1769401752214,0.04556,87864.0,87849.0,1.15364632]
[1769401754184,0.04556,87864.0,87849.0,0.1246468]
[1769401754389,0.01756146,87863.0,87849.0,0.1246468]
[1769401754599,0.12879455,87869.0,87849.0,0.1246468]
[1769401754842,0.12879455,87867.0,87849.0,0.1246468]
[1769401755048,0.11383623,87866.0,87849.0,0.1246468]
[1769401755286,0.11383623,87865.0,87849.0,0.1246468]
[1769401755533,0.12879455,87867.0,87849.0,0.1246468]
[1769401755743,0.11383372,87866.0,87849.0,0.1246468]
[1769401755942,0.11383372,87865.0,87849.0,0.1246468]
[1769401756147,0.12879455,87867.0,87849.0,0.1246468]
[1769401756354,0.11383225,87866.0,87849.0,0.1246468]
[1769401756561,0.11383225,87865.0,87849.0,0.1246468]
[1769401756824,0.12879455,87867.0,87849.0,0.1246468]
[1769401757026,0.11383228,87866.0,87849.0,0.1246468]
[1769401757236,0.11383228,87865.0,87849.0,0.1246468]
[1769401757452,0.12879455,87867.0,87849.0,0.1246468]
[1769401757673,0.11383057,87866.0,87849.0,0.1246468]
[1769401757882,0.12879455,87867.0,87849.0,0.1246468]
[1769401758132,0.11383057,87866.0,87849.0,0.1246468]
[1769401758335,0.12879455,87867.0,87849.0,0.1246468]
[1769401758550,0.11383011,87866.0,87849.0,0.1246468]
[1769401758762,0.12879455,87867.0,87849.0,0.1246468]
[1769401758991,0.11383011,87866.0,87850.0,0.50950897]
[1769401759195,0.11383045,87865.0,87850.0,0.50950897]
[1769401759401,0.12879455,87867.0,87850.0,0.50950897]
[1769401759609,0.11383032,87866.0,87850.0,0.50950897]
[1769401759824,0.11383032,87865.0,87850.0,0.50950897]
[1769401760036,0.12879455,87867.0,87849.0,0.1246468]
[1769401760207,0.11383097,87866.0,87849.0,0.1246468]
[1769401760421,0.12879455,87867.0,87849.0,0.1246468]
[1769401760422,0.11383097,87865.0,87849.0,0.1246468]
[1769401760643,0.12879455,87867.0,87849.0,0.1246468]
[1769401760968,0.1138308,87866.0,87849.0,0.1246468]
[1769401761176,0.1138308,87865.0,87849.0,0.1246468]
[1769401761462,0.12879455,87867.0,87849.0,0.1246468]
[1769401761702,0.11383215,87866.0,87849.0,0.1246468]
[1769401761908,0.11383215,87865.0,87849.0,0.1246468]
[1769401762056,0.12879455,87867.0,87849.0,0.1246468]
[1769401762267,0.11383335,87866.0,87849.0,0.1246468]
[1769401762464,0.11383335,87865.0,87849.0,0.1246468]
[1769401762664,0.12879455,87867.0,87850.0,0.13740265]
[1769401763231,0.11383278,87866.0,87850.0,0.13740265]
[1769401763432,0.12879455,87867.0,87850.0,0.13740265]
[1769401763633,0.11383585,87866.0,87852.0,0.13740265]
[1769401763841,0.01374752,87870.0,87853.0,0.13740265]
[1769401764043,0.11383549,87869.0,87853.0,1.19645577]
[1769401764260,0.01374752,87870.0,87853.0,1.19645577]
[1769401764261,0.11383549,87868.0,87853.0,1.19645577]
[1769401764478,0.11383549,87867.0,87853.0,1.19645577]
[1769401764748,0.11383549,87866.0,87853.0,1.19645577]
[1769401764956,0.11383549,87865.0,87853.0,1.19645577]
[1769401765194,0.11383549,87864.0,87853.0,1.19645577]
[1769401765378,0.11383549,87863.0,87853.0,1.19645577]
[1769401765631,0.01374752,87870.0,87853.0,1.19645577]
[1769401765812,0.11384602,87869.0,87853.0,1.19645577]
[1769401766019,0.11384602,87868.0,87853.0,1.19645577]
[1769401766249,0.01374752,87870.0,87853.0,1.19645577]
[1769401766250,0.11384602,87867.0,87853.0,1.19645577]
[1769401766453,0.11384602,87866.0,87853.0,1.19645577]
[1769401766635,0.11384602,87865.0,87853.0,1.19645577]
[1769401766859,0.11384602,87864.0,87853.0,1.19645577]
[1769401767045,0.11384602,87863.0,87853.0,1.19645577]
[1769401767254,0.01374752,87870.0,87853.0,1.19645577]
[1769401767420,0.11385821,87869.0,87853.0,1.19645577]
[1769401767624,0.11385821,87868.0,87853.0,1.19645577]
[1769401767807,0.11385821,87867.0,87853.0,1.19645577]
[1769401768010,0.11385821,87866.0,87853.0,1.19645577]
[1769401768247,0.11385821,87865.0,87853.0,1.19645577]
[1769401768421,0.11385821,87864.0,87853.0,1.19645577]
[1769401768626,0.000284,87871.0,87853.0,1.19645577]
[1769401768823,0.000284,87871.0,87855.0,1.05905312]
[1769401769025,0.000284,87871.0,87856.0,0.13740265]
[1769401778312,0.000284,87871.0,87858.0,0.13438774]
[1769401778867,0.05283218,87879.0,87858.0,0.13438774]
[1769401779099,0.01374752,87873.0,87858.0,0.13438774]
[1769401780807,0.04891736,87871.0,87850.0,0.50950897]
[1769401781220,0.04891736,87871.0,87851.0,0.13438774]
[1769401784921,0.04891736,87871.0,87852.0,0.01138278]
[1769401785143,0.04891736,87871.0,87852.0,0.13438774]
[1769401785382,0.04891736,87871.0,87852.0,0.14577052]
[1769401785590,0.04891736,87871.0,87852.0,0.13438774]
[1769401786222,0.04891736,87871.0,87852.0,0.14577052]
[1769401786615,0.29891736,87871.0,87852.0,0.14577052]
[1769401786820,0.29891736,87871.0,87852.0,0.13438774]
[1769401787032,0.11385433,87870.0,87852.0,0.13438774]
[1769401787206,0.29891736,87871.0,87852.0,0.13438774]
[1769401787403,0.11385912,87870.0,87852.0,0.13438774]
[1769401787614,0.29891736,87871.0,87852.0,0.13438774]
[1769401787823,0.11385912,87870.0,87852.0,0.13438774]
[1769401788029,0.29891736,87871.0,87852.0,0.13438774]
[1769401788235,0.1138642,87870.0,87852.0,0.13438774]
[1769401788464,0.29891736,87871.0,87852.0,0.13438774]
[1769401788604,0.1138642,87870.0,87852.0,0.13438774]
[1769401788801,0.1138642,87869.0,87852.0,0.13438774]
[1769401789031,0.1138642,87868.0,87852.0,0.13438774]
[1769401789264,0.1138642,87867.0,87852.0,0.13438774]
[1769401789463,0.29891736,87871.0,87852.0,0.13438774]
[1769401789668,0.11387005,87870.0,87852.0,0.13438774]
[1769401789896,0.11387005,87869.0,87852.0,0.13438774]
[1769401790115,0.11387005,87868.0,87852.0,0.13438774]
[1769401790290,0.11387005,87867.0,87852.0,0.13438774]
[1769401790486,0.00017561,87870.0,87852.0,0.13438774]
[1769401790698,0.11405272,87869.0,87852.0,0.13438774]
[1769401790919,0.11387711,87868.0,87852.0,0.13438774]
[1769401791090,0.11387711,87867.0,87852.0,0.13438774]
[1769401791405,0.00017561,87869.0,87852.0,0.13438774]
[1769401791605,0.11388513,87868.0,87852.0,0.13438774]
[1769401791819,0.11388513,87867.0,87854.0,0.99849445]
[1769401792099,0.25,87871.0,87855.0,0.13438774]
[1769401792275,0.11389461,87870.0,87855.0,0.13438774]
[1769401792487,0.11389461,87869.0,87855.0,0.13438774]
[1769401792698,0.11389461,87868.0,87855.0,0.13438774]
[1769401792922,0.11389461,87867.0,87855.0,0.13438774]
[1769401793130,0.25,87871.0,87855.0,0.13438774]
[1769401793305,0.11407486,87870.0,87855.0,0.13438774]
[1769401793611,0.11389925,87869.0,87855.0,0.13438774]
[1769401793823,0.11389925,87868.0,87855.0,0.13438774]
[1769401793974,0.11389925,87867.0,87855.0,0.13438774]
[1769401794179,0.00017561,87870.0,87855.0,0.13438774]
[1769401794382,0.11390533,87869.0,87855.0,0.13438774]
[1769401794586,0.11390533,87868.0,87855.0,0.13438774]
[1769401794789,0.11390533,87867.0,87855.0,0.13438774]
[1769401795124,0.00017561,87870.0,87855.0,0.13438774]
[1769401795590,0.11391331,87869.0,87855.0,0.13438774]
[1769401795798,0.11391331,87868.0,87855.0,0.13438774]
[1769401795981,0.11391331,87867.0,87855.0,0.13438774]
[1769401796234,0.00017561,87870.0,87855.0,0.13438774]
[1769401796412,0.11392292,87869.0,87855.0,0.13438774]
[1769401796615,0.11392292,87868.0,87855.0,0.13438774]
[1769401796838,0.11392292,87867.0,87855.0,0.13438774]
[1769401797041,0.00017561,87870.0,87855.0,0.13438774]
[1769401797275,0.11393623,87869.0,87855.0,0.99849445]
[1769401797495,0.11393623,87868.0,87856.0,0.13438774]
[1769401797709,0.11393623,87867.0,87856.0,0.13438774]
[1769401797913,0.25,87871.0,87856.0,0.13438774]
[1769401798133,0.11393623,87870.0,87856.0,0.13438774]
[1769401798367,0.11393623,87869.0,87856.0,0.13438774]
[1769401798598,0.11393623,87868.0,87856.0,0.13438774]
[1769401798817,0.25,87871.0,87860.0,0.13438774]
[1769401799051,0.11395533,87870.0,87860.0,0.13438774]
[1769401799263,0.25,87871.0,87860.0,0.13438774]
[1769401799264,0.11395533,87869.0,87860.0,0.13438774]
[1769401799485,0.11395533,87868.0,87860.0,0.13438774]
[1769401799722,0.25,87871.0,87860.0,0.13438774]
[1769401799936,0.11395027,87870.0,87860.0,0.13438774]
[1769401800155,0.11395027,87869.0,87860.0,0.13438774]
[1769401800373,0.25,87871.0,87860.0,0.13438774]
[1769401800593,0.11395041,87870.0,87860.0,0.13438774]
[1769401800823,0.11395041,87869.0,87860.0,0.13438774]
[1769401801059,0.25,87871.0,87860.0,0.13438774]
[1769401801262,0.11395103,87870.0,87860.0,0.13438774]
[1769401801475,0.0001692,87885.0,87871.0,0.13438774]
[1769401802516,0.0001692,87885.0,87882.0,0.13438774]
[1769401802722,0.0001654,87895.0,87885.0,0.0001692]
[1769401802922,0.0001654,87895.0,87886.0,0.13438774]
[1769401803062,0.26303651,87894.0,87885.0,0.00014042]
[1769401804519,0.0001654,87895.0,87885.0,0.00014042]
[1769401804685,0.0001654,87895.0,87887.0,0.12479034]
[1769401804907,0.0001654,87904.0,87895.0,0.12495574]
[1769401805458,0.01374752,87911.0,87901.0,0.01137643]
[1769401805666,0.000224,87918.0,87904.0,0.13616638]
[1769401805868,0.000224,87918.0,87909.0,0.50950653]
[1769401806079,0.000224,87918.0,87908.0,0.12479034]
[1769401807126,0.000224,87918.0,87897.0,0.12479034]
[1769401807127,0.05994009,87917.0,87897.0,0.12479034]
[1769401807313,0.27370836,87907.0,87890.0,0.12479034]
[1769401807528,0.000224,87918.0,87897.0,0.50950653]
[1769401807672,0.000224,87918.0,87885.0,0.00014042]
[1769401807673,0.000224,87918.0,87907.0,0.12479034]
[1769401807875,0.000224,87918.0,87909.0,0.12479034]
[1769401809498,0.000224,87918.0,87909.0,0.13616573]
[1769401809697,0.000224,87918.0,87908.0,0.50950653]
[1769401809698,0.0004468,87924.0,87915.0,0.13616496]
[1769401809997,0.0004468,87924.0,87920.0,0.01137397]
[1769401810171,0.0002609,87934.0,87922.0,0.12479034]
[1769401810300,0.0002609,87934.0,87923.0,0.12479034]
[1769401810501,0.0587217,87942.0,87923.0,0.12479034]
[1769401810945,0.0587217,87942.0,87923.0,0.12493076]
[1769401811225,0.0587217,87942.0,87930.0,0.50950653]
[1769401811429,0.0002609,87949.0,87931.0,0.12479034]
[1769401812294,0.0002609,87949.0,87932.0,0.12479034]
[1769401812693,0.0002609,87949.0,87932.0,1.10948306]
[1769401812893,0.0002609,87949.0,87933.0,0.01137229]
[1769401813105,0.0002609,87949.0,87933.0,0.98469272]
[1769401813449,0.0002609,87949.0,87932.0,0.12479034]
[1769401814203,0.0002609,87949.0,87925.0,0.12479034]
[1769401814204,0.01137087,87944.0,87925.0,0.12479034]
[1769401814406,0.06855064,87947.0,87925.0,0.12479034]
[1769401814819,0.02511916,87938.0,87923.0,0.00014042]
[1769401815021,0.02511916,87938.0,87904.0,0.01137604]
[1769401815022,0.05675261,87931.0,87904.0,0.17484]
[1769401815264,0.05675261,87931.0,87904.0,0.17498043]
[1769401815398,0.05675261,87931.0,87906.0,0.12479034]
[1769401815586,0.05675261,87931.0,87906.0,0.9960685]
[1769401815793,0.05675261,87931.0,87910.0,0.50950653]
[1769401815991,0.05675261,87931.0,87911.0,0.12479034]
[1769401816199,0.07006817,87939.0,87912.0,0.01137501]
[1769401816406,0.07006817,87939.0,87916.0,0.12479034]
[1769401816603,0.07006817,87939.0,87918.0,0.12479034]
[1769401816890,0.05632065,87939.0,87920.0,0.6426828]
[1769401817044,0.05632065,87939.0,87921.0,0.13317627]
[1769401817460,0.05632065,87939.0,87922.0,0.13317627]
[1769401817891,0.01450069,87940.0,87922.0,0.13317627]
[1769401818254,0.01137151,87939.0,87922.0,0.13317627]
[1769401818456,0.06995749,87940.0,87922.0,0.13317627]
[1769401818659,0.08132887,87940.0,87922.0,0.13317627]
[1769401818891,0.05502452,87939.0,87922.0,0.13317627]
[1769401821503,0.01450069,87940.0,87923.0,1.06239552]
[1769401821707,0.01450069,87940.0,87927.0,0.13317627]
[1769401821890,0.01450069,87940.0,87925.0,0.01137332]
[1769401821891,0.01450069,87940.0,87931.0,0.13317627]
[1769401822481,0.01450069,87940.0,87932.0,0.13317627]
[1769401822683,0.01450069,87940.0,87932.0,1.06239552]
[1769401822882,0.01450069,87940.0,87933.0,0.13317627]
[1769401823080,0.01450069,87940.0,87933.0,0.1333167]
[1769401823740,0.01450069,87940.0,87934.0,0.13317627]
[1769401824107,0.05780282,87956.0,87933.0,1.06253595]
[1769401824108,0.05780282,87956.0,87935.0,0.13317627]
[1769401824379,0.06917214,87956.0,87936.0,0.13317627]
[1769401824536,0.01136945,87955.0,87936.0,0.13317627]
[1769401824741,0.05780282,87956.0,87936.0,1.06239552]
[1769401824939,0.05780282,87956.0,87937.0,0.13317627]
[1769401826332,0.06917214,87956.0,87937.0,0.13317627]
[1769401826541,0.01137022,87949.0,87937.0,0.13317627]
[1769401826845,0.01136996,87951.0,87937.0,0.13317627]
[1769401827101,0.06109962,87952.0,87934.0,0.1748]
[1769401827441,0.06109962,87952.0,87934.0,0.30797627]
[1769401828033,0.06109962,87952.0,87934.0,0.1748]
[1769401828230,0.06109962,87952.0,87935.0,0.13317627]
[1769401828430,0.0002,87959.0,87936.0,1.06239552]
[1769401828685,0.0002,87959.0,87943.0,0.13317627]
[1769401828887,0.0002,87959.0,87945.0,1.06239552]
[1769401829100,0.0002,87959.0,87946.0,0.13317627]
[1769401831823,0.0002,87959.0,87931.0,0.01137255]
[1769401832025,0.06792666,87958.0,87935.0,0.13317627]
[1769401832354,0.06792666,87958.0,87938.0,0.13317627]
[1769401832566,0.01728215,87957.0,87938.0,0.13317627]
[1769401832779,0.01728215,87957.0,87938.0,1.06239552]
[1769401832983,0.06792666,87958.0,87939.0,0.13317627]
[1769401834410,0.06792666,87958.0,87940.0,0.1229209]
[1769401834615,0.06792666,87958.0,87941.0,0.1229209]
[1769401834851,0.0002,87959.0,87941.0,0.13429216]
[1769401835027,0.0002,87959.0,87941.0,0.1229209]
[1769401835960,0.01156893,87959.0,87941.0,0.1229209]
[1769401836094,0.01136957,87954.0,87941.0,0.1229209]
[1769401836298,0.01136919,87957.0,87941.0,0.1228209]
[1769401836501,0.08208232,87958.0,87941.0,0.1228209]
[1769401836912,0.07071326,87958.0,87941.0,0.1228209]
[1769401839348,0.11351632,87957.0,87941.0,0.1228209]
[1769401839555,0.08208232,87958.0,87934.0,1.21181131]
[1769401839556,0.01137048,87947.0,87934.0,0.1748]
[1769401839872,0.11351632,87946.0,87934.0,0.1748]
[1769401840069,0.11351632,87946.0,87933.0,0.00014043]
[1769401841927,0.09133326,87965.0,87946.0,0.01]
[1769401842269,0.01374752,87955.0,87946.0,0.00988721]
[1769401842471,0.0002609,87965.0,87946.0,0.13158491]
[1769401842690,0.01374752,87955.0,87946.0,0.13158491]
[1769401844748,0.01374752,87955.0,87946.0,0.1229209]
[1769401847654,0.08574013,87963.0,87946.0,0.1229209]
[1769401847928,0.01162905,87965.0,87930.0,0.50950653]
[1769401847929,0.0002609,87965.0,87951.0,0.1229209]
[1769401849291,0.02511477,87972.0,87951.0,0.1229209]
[1769401849491,0.01136789,87967.0,87951.0,0.1229209]
[1769401849698,0.01136777,87968.0,87951.0,0.1229209]
[1769401849904,0.01136867,87961.0,87934.0,0.13355918]
[1769401850107,0.05121296,87956.0,87935.0,0.13355918]
[1769401850456,0.05121296,87954.0,87935.0,0.13355918]
[1769401850653,0.05121296,87954.0,87930.0,0.13355918]
[1769401851061,0.05121296,87954.0,87933.0,0.00031053]
[1769401851470,0.05121296,87954.0,87933.0,0.13386971]
[1769401852627,0.05121296,87954.0,87935.0,0.13355918]
[1769401852894,0.05121296,87954.0,87935.0,1.03701131]
[1769401853040,0.01374752,87956.0,87938.0,0.13355918]
[1769401853215,0.01374752,87956.0,87939.0,1.03701131]
[1769401853406,0.01374752,87956.0,87940.0,0.13355918]
[1769401853619,0.01374752,87956.0,87940.0,0.13244142]
[1769401854026,0.11368007,87955.0,87940.0,0.13244142]
[1769401854240,0.11368007,87954.0,87940.0,0.13244142]
[1769401854449,0.01374752,87956.0,87940.0,0.13244142]
[1769401854649,0.11368875,87955.0,87940.0,0.13244142]
[1769401854935,0.11368875,87954.0,87940.0,0.13244142]
[1769401855057,0.01374752,87956.0,87940.0,0.13244142]
[1769401855267,0.11368881,87955.0,87940.0,0.13244142]
[1769401855470,0.11368881,87954.0,87940.0,0.13244142]
[1769401855693,0.11368881,87953.0,87940.0,0.13244142]
[1769401855896,0.31258241,87955.0,87940.0,0.13244142]
[1769401856139,0.0113697,87953.0,87940.0,0.13244142]
[1769401856290,0.11369781,87952.0,87940.0,0.13244142]
[1769401856630,0.0113697,87953.0,87940.0,0.13244142]
[1769401856804,0.11370846,87952.0,87940.0,0.13244142]
[1769401857126,0.01374752,87942.0,87938.0,0.0001701]
[1769401857326,0.05121296,87941.0,87933.0,0.00014043]
[1769401857487,0.25,87955.0,87933.0,0.00014043]
[1769401857670,0.01374752,87942.0,87933.0,0.00014043]
[1769401857875,0.01374752,87942.0,87933.0,0.13314073]
[1769401858925,0.01374752,87942.0,87933.0,1.03715174]
[1769401859142,0.01374752,87942.0,87934.0,0.13524854]
[1769401860389,0.01374752,87942.0,87934.0,1.03701131]
[1769401860638,0.00018122,87954.0,87934.0,1.03701131]
[1769401860639,0.25,87955.0,87942.0,0.00866401]
[1769401860842,0.11372703,87954.0,87942.0,0.14616099]
[1769401861020,0.11372703,87953.0,87942.0,0.14616099]
[1769401861229,0.11372703,87952.0,87942.0,0.14616099]
[1769401861432,0.11372703,87951.0,87942.0,0.14616099]
[1769401861609,0.11372703,87950.0,87942.0,0.14616099]
[1769401861809,0.25,87955.0,87945.0,1.03701131]
[1769401862036,0.11372559,87954.0,87946.0,0.13749698]
[1769401862214,0.11372559,87953.0,87946.0,0.13749698]
[1769401862414,0.11372559,87952.0,87946.0,0.13749698]
[1769401862621,0.25,87955.0,87946.0,0.13749698]
[1769401862839,0.11372519,87954.0,87946.0,0.13749698]
[1769401863057,0.11372519,87953.0,87946.0,0.13749698]
[1769401863402,0.25,87955.0,87938.0,1.03701131]
[1769401863612,0.11372491,87954.0,87939.0,0.13974558]
[1769401863786,0.11372491,87953.0,87939.0,0.13963558]
[1769401863993,0.11372491,87952.0,87939.0,0.13963558]
[1769401864231,0.25,87955.0,87939.0,0.13963558]
[1769401864426,0.11372487,87954.0,87939.0,0.13963558]
[1769401864603,0.11372487,87953.0,87940.0,0.13969058]
[1769401864979,0.11372487,87952.0,87942.0,0.13969058]
[1769401865142,0.25,87955.0,87942.0,0.97974811]
[1769401865352,0.1137266,87954.0,87943.0,0.97974811]
[1769401865552,0.1137266,87953.0,87944.0,0.13969058]
[1769401865772,0.1137266,87952.0,87944.0,0.13969058]
[1769401865916,0.25,87955.0,87944.0,0.13969058]
[1769401866100,0.11372559,87954.0,87944.0,0.13969058]
[1769401866309,0.11372559,87953.0,87944.0,0.13969058]
[1769401866667,0.11372559,87952.0,87944.0,0.13969058]
[1769401866812,0.25,87955.0,87944.0,0.13969058]
[1769401867006,0.1137252,87954.0,87944.0,0.13969058]
[1769401867356,0.1137252,87953.0,87944.0,0.13969058]
[1769401867559,0.1137252,87952.0,87944.0,0.13969058]
[1769401867911,0.09107236,87972.0,87944.0,0.13969058]
[1769401868030,0.09107236,87972.0,87955.0,0.14193911]
[1769401868031,0.12507726,87971.0,87955.0,0.14193911]
[1769401868237,0.2315928,87970.0,87955.0,0.14193911]
[1769401868487,0.11370988,87969.0,87955.0,0.14193911]
[1769401868668,0.11788292,87970.0,87955.0,0.14193911]
[1769401868876,0.12504885,87969.0,87955.0,0.14193911]
[1769401869081,0.01136777,87968.0,87955.0,0.14193911]
[1769401869319,0.01374752,87960.0,87955.0,0.14193911]
[1769401869530,0.02511632,87960.0,87955.0,0.14193911]
[1769401869736,0.11788292,87959.0,87942.0,0.14127112]
[1769401869969,0.01136919,87957.0,87942.0,0.14127112]
[1769401870196,0.01374752,87946.0,87941.0,0.04552]
[1769401870646,0.01374752,87946.0,87937.0,0.02274355]
[1769401870647,0.02511813,87946.0,87937.0,0.02274355]
[1769401870846,0.17472,87972.0,87933.0,0.00014043]
[1769401870847,0.08708417,87944.0,87933.0,0.00014043]
[1769401871307,0.07333665,87944.0,87933.0,0.00014043]
[1769401871816,0.07333665,87950.0,87933.0,0.14365998]
[1769401872035,0.19841231,87949.0,87933.0,0.14365998]
[1769401872237,0.11370544,87948.0,87933.0,0.14365998]
[1769401872355,0.07333665,87949.0,87933.0,0.14365998]
[1769401872668,0.01137061,87946.0,87933.0,0.14365998]
[1769401872851,0.07333665,87948.0,87933.0,0.14365998]
[1769401873489,0.07333665,87948.0,87936.0,0.97974811]
[1769401873692,0.07333665,87948.0,87937.0,0.14351955]
[1769401874353,0.01374752,87947.0,87937.0,0.14351955]
[1769401875567,0.01374752,87947.0,87933.0,0.00014043]
[1769401875568,0.01137087,87944.0,87933.0,0.00014043]
[1769401875764,0.011371,87943.0,87933.0,0.00014043]
[1769401875927,0.01137087,87944.0,87933.0,0.00014043]
[1769401876345,0.01374752,87947.0,87933.0,0.00014043]
[1769401876544,0.01374752,87947.0,87933.0,0.14815689]
[1769401876884,0.025118,87947.0,87933.0,0.14815689]
[1769401877085,0.01137061,87946.0,87933.0,0.14815689]
[1769401877283,0.01137074,87945.0,87933.0,0.14815689]
[1769401877788,0.01137061,87946.0,87933.0,0.14815689]
[1769401878365,0.01374752,87942.0,87933.0,0.14815689]
[1769401879398,0.01374752,87942.0,87933.0,0.00014043]
[1769401879599,0.02511865,87942.0,87933.0,0.00014043]
[1769401879793,0.01374752,87942.0,87933.0,0.00014043]
[1769401880323,0.02511865,87942.0,87933.0,0.00014043]
[1769401880528,0.01374752,87942.0,87926.0,0.0227464]
[1769401880764,0.01137138,87940.0,87926.0,0.00014043]
[1769401881126,0.01137164,87938.0,87926.0,0.00014043]
[1769401881529,0.01374752,87937.0,87926.0,0.00014043]
[1769401881856,0.01374752,87937.0,87926.0,0.15040526]
[1769401882711,0.02511929,87937.0,87926.0,0.15040526]
[1769401884261,0.02511929,87937.0,87926.0,0.00014043]
[1769401884262,0.01137203,87935.0,87926.0,0.00014043]
[1769401884446,0.01137203,87935.0,87926.0,0.15265391]
[1769401884640,0.01137216,87934.0,87926.0,0.00014043]
[1769401885745,0.01137229,87933.0,87926.0,0.00014043]
[1769401886756,0.01137216,87934.0,87926.0,0.00014043]
[1769401886961,0.01137229,87933.0,87926.0,0.00014043]
[1769401887204,0.01137242,87932.0,87926.0,0.00014043]
[1769401887385,0.01137255,87931.0,87926.0,0.00014043]
[1769401887747,0.01137242,87932.0,87926.0,0.00014043]
[1769401887952,0.01137229,87933.0,87926.0,0.00014043]
[1769401888452,0.01137255,87931.0,87926.0,0.00014043]
[1769401888812,0.01137242,87932.0,87926.0,0.00014043]
[1769401889453,0.01137229,87933.0,87926.0,0.00014043]
[1769401890006,0.01137242,87932.0,87926.0,0.00014043]
[1769401890410,0.01137242,87932.0,87921.0,0.0002894]
[1769401890636,0.01137242,87932.0,87900.0,0.0568825]
[1769401890637,0.01137384,87921.0,87909.0,0.15925942]
[1769401890837,0.01137423,87918.0,87909.0,0.00014049]
[1769401891076,0.01137501,87912.0,87904.0,0.0002894]
[1769401891208,0.01137514,87911.0,87904.0,0.0002894]
[1769401891403,0.00014114,87912.0,87904.0,0.0002894]
[1769401893567,0.01137514,87911.0,87904.0,0.0002894]